[Event "Late-Titled-Tuesday-Blitz-September-12-2023"]
[Site "Chess.com"]
[Date "2023.09.12"]
[Round "11"]
[White "MagnusCarlsen"]
[Black "Zkid"]
[Result "1-0"]
[WhiteElo "3222"]
[BlackElo "2954"]
[TimeControl "180+1"]
[EndTime "16:00:16 PDT"]
[Termination "MagnusCarlsen won by resignation"]

1. e4 {[%clk 0:03:00.9]} 1... e6 {[%clk 0:03:00.3]} 2. d4 {[%clk 0:03:00.1]}
2... d5 {[%clk 0:03:00.9]} 3. exd5 {[%clk 0:03:01]} 3... exd5 {[%clk 0:03:01.5]}
4. Nf3 {[%clk 0:03:01.8]} 4... Nc6 {[%clk 0:03:01.9]} 5. Bb5 {[%clk 0:03:01.2]}
5... Bd6 {[%clk 0:03:02.1]} 6. O-O {[%clk 0:03:00.4]} 6... Bg4 {[%clk
0:03:00.7]} 7. c4 {[%clk 0:02:58.7]} 7... dxc4 {[%clk 0:02:41.2]} 8. Bxc4 {[%clk
0:02:57.5]} 8... Nf6 {[%clk 0:02:33.7]} 9. Re1+ {[%clk 0:02:57.2]} 9... Ne7
{[%clk 0:02:23.7]} 10. Qb3 {[%clk 0:02:55.1]} 10... O-O {[%clk 0:02:20.5]} 11.
Ne5 {[%clk 0:02:54.6]} 11... Bh5 {[%clk 0:02:17.2]} 12. Nc3 {[%clk 0:02:53.8]}
12... Nc6 {[%clk 0:02:06.3]} 13. Nxc6 {[%clk 0:02:49.9]} 13... bxc6 {[%clk
0:02:07.2]} 14. Qa4 {[%clk 0:02:46.9]} 14... Bxh2+ {[%clk 0:01:39.3]} 15. Kxh2
{[%clk 0:02:44.8]} 15... Ng4+ {[%clk 0:01:39.6]} 16. Kg3 {[%clk 0:02:45.1]}
16... Qd6+ {[%clk 0:01:32.7]} 17. Bf4 {[%clk 0:02:36.7]} 17... Qg6 {[%clk
0:01:32.8]} 18. Bf1 {[%clk 0:02:27.8]} 18... Rab8 {[%clk 0:01:06.6]} 19. Rab1
{[%clk 0:02:21.3]} 19... Rb6 {[%clk 0:00:23.8]} 20. f3 {[%clk 0:02:16.8]} 20...
c5 {[%clk 0:00:23.2]} 21. dxc5 {[%clk 0:02:04.6]} 21... Rf6 {[%clk 0:00:20]} 22.
Qe4 {[%clk 0:01:38.7]} 22... Rf5 {[%clk 0:00:15.9]} 23. fxg4 {[%clk 0:01:37.5]}
23... Qxg4+ {[%clk 0:00:14.9]} 24. Kh2 {[%clk 0:01:37.6]} 24... Rxf4 {[%clk
0:00:14.3]} 25. Qe3 {[%clk 0:01:38.3]} 25... Qh4+ {[%clk 0:00:06.5]} 26. Kg1
{[%clk 0:01:38.5]} 26... Qg5 {[%clk 0:00:07.1]} 27. Be2 {[%clk 0:01:26.6]} 27...
Bg6 {[%clk 0:00:06.7]} 28. Nd5 {[%clk 0:01:25.1]} 28... Qxd5 {[%clk 0:00:04.2]}
29. Qxf4 {[%clk 0:01:24.7]} 29... Bxb1 {[%clk 0:00:04.6]} 30. Rxb1 {[%clk
0:01:25.4]} 30... Qxc5+ {[%clk 0:00:04]} 31. Qf2 {[%clk 0:01:18]} 31... Qc2
{[%clk 0:00:04.1]} 32. Re1 {[%clk 0:01:15.3]} 32... Qxb2 {[%clk 0:00:04.3]} 33.
Bc4 {[%clk 0:01:16]} 33... Qb6 {[%clk 0:00:03.4]} 34. Bxf7+ {[%clk 0:01:08]}
34... Kh8 {[%clk 0:00:02.2]} 35. Qxb6 {[%clk 0:01:08.7]} 35... cxb6 {[%clk
0:00:02.2]} 36. Re7 {[%clk 0:01:09.4]} 36... g6 {[%clk 0:00:01.5]} 37. Rxa7
{[%clk 0:01:08.5]} 37... Rd8 {[%clk 0:00:02.2]} 38. Rb7 {[%clk 0:01:08.1]} 38...
Rd6 {[%clk 0:00:02.5]} 39. Bb3 {[%clk 0:01:08.7]} 39... h5 {[%clk 0:00:02.1]}
40. Kf2 {[%clk 0:01:09.4]} 40... g5 {[%clk 0:00:02.5]} 41. Kf3 {[%clk
0:01:09.9]} 41... Rf6+ {[%clk 0:00:02.6]} 42. Ke4 {[%clk 0:01:09.8]} 42... g4
{[%clk 0:00:03.2]} 43. Ke5 {[%clk 0:01:10]} 43... Rc6 {[%clk 0:00:03.3]} 44. Bd5
{[%clk 0:01:10.3]} 44... Rh6 {[%clk 0:00:03]} 45. Kf4 {[%clk 0:01:08.7]} 45...
Rd6 {[%clk 0:00:02.6]} 46. Be4 {[%clk 0:01:08.7]} 46... Rd2 {[%clk 0:00:02.5]}
47. Rh7+ {[%clk 0:01:08]} 47... Kg8 {[%clk 0:00:02.5]} 48. Rxh5 {[%clk
0:01:08.9]} 48... Kg7 {[%clk 0:00:02.4]} 49. Rb5 {[%clk 0:01:07.4]} 49... Rxa2
{[%clk 0:00:02.4]} 50. Rxb6 {[%clk 0:01:07.7]} 50... Ra4 {[%clk 0:00:03.1]} 51.
Rg6+ {[%clk 0:01:07.6]} 51... Kf7 {[%clk 0:00:03.5]} 52. Rxg4 {[%clk 0:01:08.5]}
1-0

[Event "Late-Titled-Tuesday-Blitz-September-12-2023"]
[Site "Chess.com"]
[Date "2023.09.12"]
[Round "11"]
[White "temus_galaktionov"]
[Black "BigAl"]
[Result "1-0"]
[WhiteElo "2827"]
[BlackElo "2564"]
[TimeControl "180+1"]
[EndTime "16:00:16 PDT"]
[Termination "temus_galaktionov won by resignation"]

1. d4 {[%clk 0:03:00.9]} 1... Nf6 {[%clk 0:02:59.9]} 2. Nf3 {[%clk 0:02:55.9]}
2... g6 {[%clk 0:02:59.5]} 3. c4 {[%clk 0:02:56.5]} 3... Bg7 {[%clk 0:03:00.2]}
4. Nc3 {[%clk 0:02:57]} 4... O-O {[%clk 0:03:00.9]} 5. e4 {[%clk 0:02:56.8]}
5... d6 {[%clk 0:03:01.6]} 6. Be2 {[%clk 0:02:57.4]} 6... Bg4 {[%clk 0:03:02.1]}
7. Ng1 {[%clk 0:02:54.6]} 7... Bc8 {[%clk 0:03:00.4]} 8. Nf3 {[%clk 0:02:54.8]}
8... Bg4 {[%clk 0:03:00.3]} 9. O-O {[%clk 0:02:55.4]} 9... Nbd7 {[%clk
0:03:00.3]} 10. Be3 {[%clk 0:02:55.5]} 10... e5 {[%clk 0:03:00.3]} 11. dxe5
{[%clk 0:02:53.5]} 11... dxe5 {[%clk 0:02:59]} 12. h3 {[%clk 0:02:53.4]} 12...
Bxf3 {[%clk 0:02:58.8]} 13. Bxf3 {[%clk 0:02:54.3]} 13... c6 {[%clk 0:02:58.8]}
14. b4 {[%clk 0:02:53.8]} 14... Qe7 {[%clk 0:02:39.7]} 15. c5 {[%clk 0:02:45.3]}
15... Rfd8 {[%clk 0:02:26.7]} 16. Qa4 {[%clk 0:02:34.4]} 16... a6 {[%clk
0:02:18.8]} 17. Be2 {[%clk 0:01:54.6]} 17... Nf8 {[%clk 0:02:13.9]} 18. Bc4
{[%clk 0:01:55.2]} 18... Ne6 {[%clk 0:02:07.5]} 19. Bxe6 {[%clk 0:01:55.4]}
19... Qxe6 {[%clk 0:02:07.3]} 20. Qb3 {[%clk 0:01:56]} 20... Qxb3 {[%clk
0:01:57]} 21. axb3 {[%clk 0:01:56.9]} 21... Rd3 {[%clk 0:01:57.2]} 22. Rfc1
{[%clk 0:01:56.6]} 22... Rad8 {[%clk 0:01:50.9]} 23. Kf1 {[%clk 0:01:56.5]}
23... Rxc3 {[%clk 0:01:19.2]} 24. Rxc3 {[%clk 0:01:54.4]} 24... Nxe4 {[%clk
0:01:20.1]} 25. Rcc1 {[%clk 0:01:52]} 25... Nf6 {[%clk 0:01:20.7]} 26. Bg5
{[%clk 0:01:50.2]} 26... Rd4 {[%clk 0:01:12.2]} 27. Rd1 {[%clk 0:01:49.2]} 27...
Nd5 {[%clk 0:01:10.3]} 28. Rxd4 {[%clk 0:01:45.6]} 28... exd4 {[%clk 0:01:11.2]}
29. Re1 {[%clk 0:01:43.8]} 29... Kf8 {[%clk 0:01:06.6]} 30. Bd2 {[%clk
0:01:39.3]} 30... f5 {[%clk 0:00:59.9]} 31. Ke2 {[%clk 0:01:39.2]} 31... Kf7
{[%clk 0:01:00.5]} 32. Kd3 {[%clk 0:01:39.1]} 32... Bf6 {[%clk 0:00:48.4]} 33.
Kc4 {[%clk 0:01:38.1]} 33... g5 {[%clk 0:00:43.5]} 34. Bc1 {[%clk 0:01:37.9]}
34... h6 {[%clk 0:00:32.5]} 35. Bb2 {[%clk 0:01:37.6]} 35... Nf4 {[%clk
0:00:33.4]} 36. Bxd4 {[%clk 0:01:31.2]} 36... Nxg2 {[%clk 0:00:26.3]} 37. Rd1
{[%clk 0:01:30.7]} 37... Nf4 {[%clk 0:00:23.4]} 38. Bxf6 {[%clk 0:01:30.7]}
38... Kxf6 {[%clk 0:00:24]} 39. Rd6+ {[%clk 0:01:31.2]} 39... Ne6 {[%clk
0:00:17.8]} 40. Rd7 {[%clk 0:01:29.6]} 40... h5 {[%clk 0:00:17.4]} 41. Rxb7
{[%clk 0:01:29.3]} 41... g4 {[%clk 0:00:18]} 42. h4 {[%clk 0:01:21.1]} 42... f4
{[%clk 0:00:17.8]} 43. Kd3 {[%clk 0:01:20.9]} 43... a5 {[%clk 0:00:14.8]} 44.
Rh7 {[%clk 0:01:16.5]} 44... axb4 {[%clk 0:00:15]} 45. Rxh5 {[%clk 0:01:16.4]}
45... Ng7 {[%clk 0:00:10.7]} 46. Rg5 {[%clk 0:01:14.9]} 46... Ne6 {[%clk
0:00:10.1]} 47. Rxg4 {[%clk 0:01:14.9]} 47... Nxc5+ {[%clk 0:00:10.7]} 48. Kc4
{[%clk 0:01:15.2]} 48... Ne6 {[%clk 0:00:11.1]} 49. Kxb4 {[%clk 0:01:14.6]}
49... Kf5 {[%clk 0:00:12]} 50. Rg8 {[%clk 0:01:13.5]} 1-0

[Event "Late-Titled-Tuesday-Blitz-September-12-2023"]
[Site "Chess.com"]
[Date "2023.09.12"]
[Round "11"]
[White "SpeedofLight0"]
[Black "BogdanDeac"]
[Result "1-0"]
[WhiteElo "3090"]
[BlackElo "2970"]
[TimeControl "180+1"]
[EndTime "16:00:26 PDT"]
[Termination "SpeedofLight0 won by resignation"]

1. e4 {[%clk 0:03:00.9]} 1... e5 {[%clk 0:03:00]} 2. Nf3 {[%clk 0:02:57.4]} 2...
Nf6 {[%clk 0:03:00.5]} 3. Nxe5 {[%clk 0:02:55.8]} 3... d6 {[%clk 0:03:00.5]} 4.
Nf3 {[%clk 0:02:56.3]} 4... Nxe4 {[%clk 0:03:00.7]} 5. Nc3 {[%clk 0:02:56.7]}
5... Nxc3 {[%clk 0:03:00.8]} 6. dxc3 {[%clk 0:02:57.6]} 6... Be7 {[%clk
0:03:01.3]} 7. Be3 {[%clk 0:02:57.6]} 7... O-O {[%clk 0:03:01.8]} 8. Qd2 {[%clk
0:02:58.1]} 8... Nd7 {[%clk 0:03:02.5]} 9. O-O-O {[%clk 0:02:56.1]} 9... Nf6
{[%clk 0:03:03.1]} 10. Bd3 {[%clk 0:02:54.6]} 10... Re8 {[%clk 0:03:03.6]} 11.
h4 {[%clk 0:02:47.3]} 11... Bg4 {[%clk 0:03:02.7]} 12. Kb1 {[%clk 0:02:41.6]}
12... d5 {[%clk 0:03:02.6]} 13. Rde1 {[%clk 0:02:35.7]} 13... Ne4 {[%clk
0:02:54.1]} 14. Qc1 {[%clk 0:02:30.2]} 14... Bf6 {[%clk 0:02:18.7]} 15. Ng5
{[%clk 0:02:28]} 15... h6 {[%clk 0:01:35.1]} 16. f3 {[%clk 0:02:12.6]} 16...
hxg5 {[%clk 0:01:25.7]} 17. hxg5 {[%clk 0:02:09.9]} 17... Bxg5 {[%clk
0:01:12.5]} 18. fxe4 {[%clk 0:02:02]} 18... Bxe3 {[%clk 0:00:39.5]} 19. Qxe3
{[%clk 0:01:34.7]} 19... dxe4 {[%clk 0:00:25]} 20. Bc4 {[%clk 0:01:34.1]} 20...
Qd6 {[%clk 0:00:07.9]} 21. Qg5 {[%clk 0:01:10]} 21... Be6 {[%clk 0:00:07.1]} 22.
Qh5 {[%clk 0:00:55.7]} 22... Kf8 {[%clk 0:00:06]} 23. Rxe4 {[%clk 0:00:53.8]}
23... Rad8 {[%clk 0:00:03.8]} 24. a3 {[%clk 0:00:35]} 24... f6 {[%clk
0:00:03.8]} 25. Qg6 {[%clk 0:00:24.6]} 25... Bxc4 {[%clk 0:00:03.4]} 26. Rxc4
{[%clk 0:00:19.4]} 26... Re5 {[%clk 0:00:03.6]} 27. Rh8+ {[%clk 0:00:16.1]}
27... Ke7 {[%clk 0:00:03.9]} 28. Qxg7+ {[%clk 0:00:15.5]} 28... Ke6 {[%clk
0:00:04.2]} 29. Rd4 {[%clk 0:00:12.7]} 29... Re1+ {[%clk 0:00:03.4]} 30. Ka2
{[%clk 0:00:12.7]} 30... Qc6 {[%clk 0:00:02.9]} 31. Rhxd8 {[%clk 0:00:10.1]} 1-0

[Event "Late-Titled-Tuesday-Blitz-September-12-2023"]
[Site "Chess.com"]
[Date "2023.09.12"]
[Round "11"]
[White "Chaos_Magic"]
[Black "santosalberto1987"]
[Result "1-0"]
[WhiteElo "2418"]
[BlackElo "2521"]
[TimeControl "180+1"]
[EndTime "16:00:26 PDT"]
[Termination "Chaos_Magic won by resignation"]

1. d4 {[%clk 0:03:00.9]} 1... d5 {[%clk 0:02:59.9]} 2. c4 {[%clk 0:03:01]} 2...
c6 {[%clk 0:03:00]} 3. Nf3 {[%clk 0:03:00.4]} 3... Nf6 {[%clk 0:03:00.2]} 4.
Nbd2 {[%clk 0:03:00.7]} 4... Bf5 {[%clk 0:02:59.4]} 5. Nh4 {[%clk 0:03:00.6]}
5... Bc8 {[%clk 0:02:58.8]} 6. e3 {[%clk 0:02:59.5]} 6... e6 {[%clk 0:02:58.2]}
7. Bd3 {[%clk 0:02:58.8]} 7... Be7 {[%clk 0:02:57.7]} 8. Nhf3 {[%clk 0:02:57.5]}
8... Nbd7 {[%clk 0:02:57.3]} 9. O-O {[%clk 0:02:57.6]} 9... O-O {[%clk
0:02:54.1]} 10. b3 {[%clk 0:02:57.8]} 10... b6 {[%clk 0:02:52.7]} 11. Bb2 {[%clk
0:02:58.1]} 11... Bb7 {[%clk 0:02:53.2]} 12. Ne5 {[%clk 0:02:57.1]} 12... Nxe5
{[%clk 0:02:52.6]} 13. dxe5 {[%clk 0:02:57.1]} 13... Nd7 {[%clk 0:02:53.3]} 14.
Qh5 {[%clk 0:02:50]} 14... h6 {[%clk 0:02:52.2]} 15. Qe2 {[%clk 0:02:47.7]}
15... c5 {[%clk 0:02:50.9]} 16. Rad1 {[%clk 0:02:43.2]} 16... Qc7 {[%clk
0:02:49.9]} 17. f4 {[%clk 0:02:42.8]} 17... f6 {[%clk 0:02:45.2]} 18. Qh5 {[%clk
0:02:19.8]} 18... f5 {[%clk 0:02:28.3]} 19. cxd5 {[%clk 0:02:19.4]} 19... Bxd5
{[%clk 0:02:27.9]} 20. e4 {[%clk 0:02:19.6]} 20... fxe4 {[%clk 0:02:27.4]} 21.
Nxe4 {[%clk 0:02:13.9]} 21... Qb7 {[%clk 0:02:27.4]} 22. Qg6 {[%clk 0:02:06.7]}
22... Rf7 {[%clk 0:02:24.6]} 23. Nd6 {[%clk 0:01:26.5]} 23... Bxd6 {[%clk
0:02:12.4]} 24. Qh7+ {[%clk 0:01:12.9]} 24... Kf8 {[%clk 0:02:12.2]} 25. exd6
{[%clk 0:01:00.6]} 25... Ke8 {[%clk 0:01:31]} 26. Bg6 {[%clk 0:00:41.3]} 26...
Nf8 {[%clk 0:01:24.4]} 27. Qg8 {[%clk 0:00:24.9]} 27... e5 {[%clk 0:01:03]} 28.
Bxe5 {[%clk 0:00:18.8]} 28... Be6 {[%clk 0:00:43.4]} 29. Bxg7 {[%clk 0:00:12.8]}
29... Kd7 {[%clk 0:00:42.5]} 30. Bxf7 {[%clk 0:00:12.5]} 30... Bxf7 {[%clk
0:00:38.8]} 31. Qxf7+ {[%clk 0:00:12.8]} 31... Kc6 {[%clk 0:00:39.5]} 32. Qxb7+
{[%clk 0:00:11]} 32... Kxb7 {[%clk 0:00:40.4]} 33. Bxf8 {[%clk 0:00:10.3]} 33...
Rxf8 {[%clk 0:00:41.3]} 34. d7 {[%clk 0:00:10.8]} 34... Rd8 {[%clk 0:00:41]} 35.
Rfe1 {[%clk 0:00:11.3]} 35... Kc7 {[%clk 0:00:41.9]} 36. Re8 {[%clk 0:00:11.4]}
36... Rxd7 {[%clk 0:00:42.8]} 37. Rxd7+ {[%clk 0:00:11.5]} 37... Kxd7 {[%clk
0:00:43.2]} 38. Rh8 {[%clk 0:00:12.4]} 38... Kc6 {[%clk 0:00:42.4]} 39. Rxh6+
{[%clk 0:00:12.4]} 39... Kd5 {[%clk 0:00:43.3]} 40. Rh7 {[%clk 0:00:12.4]} 40...
a5 {[%clk 0:00:43.4]} 41. f5 {[%clk 0:00:12.8]} 41... Ke5 {[%clk 0:00:43.3]} 42.
Rb7 {[%clk 0:00:12.7]} 42... Kxf5 {[%clk 0:00:42.4]} 43. Rxb6 {[%clk 0:00:13.1]}
43... Ke4 {[%clk 0:00:43.3]} 44. Rc6 {[%clk 0:00:13.4]} 44... Kd4 {[%clk
0:00:44.2]} 45. h4 {[%clk 0:00:13.5]} 1-0

[Event "Late-Titled-Tuesday-Blitz-September-12-2023"]
[Site "Chess.com"]
[Date "2023.09.12"]
[Round "11"]
[White "chosenpr"]
[Black "KamlaPasand"]
[Result "0-1"]
[WhiteElo "2349"]
[BlackElo "2295"]
[TimeControl "180+1"]
[EndTime "16:00:31 PDT"]
[Termination "KamlaPasand won on time"]

1. e4 {[%clk 0:03:00.9]} 1... e5 {[%clk 0:02:56.5]} 2. Nf3 {[%clk 0:03:00.5]}
2... Nc6 {[%clk 0:02:56]} 3. Bb5 {[%clk 0:03:00.6]} 3... a6 {[%clk 0:02:54.6]}
4. Ba4 {[%clk 0:02:59.1]} 4... Nf6 {[%clk 0:02:54.4]} 5. d3 {[%clk 0:02:58.5]}
5... b5 {[%clk 0:02:53.8]} 6. Bb3 {[%clk 0:02:58.2]} 6... Bc5 {[%clk 0:02:53.7]}
7. c3 {[%clk 0:02:58]} 7... d6 {[%clk 0:02:53.6]} 8. O-O {[%clk 0:02:58.2]} 8...
Bb7 {[%clk 0:02:53]} 9. Nbd2 {[%clk 0:02:53.1]} 9... O-O {[%clk 0:02:52.2]} 10.
h3 {[%clk 0:02:51.2]} 10... h6 {[%clk 0:02:51.3]} 11. Re1 {[%clk 0:02:50.8]}
11... Bb6 {[%clk 0:02:36.3]} 12. Nf1 {[%clk 0:02:48.5]} 12... Ne7 {[%clk
0:02:36.9]} 13. Nh4 {[%clk 0:02:38.6]} 13... Kh7 {[%clk 0:02:33.9]} 14. Qf3
{[%clk 0:02:35.4]} 14... Ng6 {[%clk 0:02:33.1]} 15. Nf5 {[%clk 0:02:28.5]} 15...
c6 {[%clk 0:02:31.9]} 16. Be3 {[%clk 0:02:25.8]} 16... Bc7 {[%clk 0:02:31.6]}
17. N1g3 {[%clk 0:02:24.9]} 17... d5 {[%clk 0:02:31.3]} 18. d4 {[%clk
0:02:12.8]} 18... c5 {[%clk 0:02:25.6]} 19. exd5 {[%clk 0:02:08.3]} 19... exd4
{[%clk 0:02:22.9]} 20. cxd4 {[%clk 0:02:05.5]} 20... c4 {[%clk 0:02:23.1]} 21.
Bc2 {[%clk 0:02:02.5]} 21... Bxd5 {[%clk 0:02:23.2]} 22. Qd1 {[%clk 0:01:50.8]}
22... Kh8 {[%clk 0:02:23.5]} 23. Qd2 {[%clk 0:01:46.4]} 23... Ng8 {[%clk
0:02:14.2]} 24. Nh5 {[%clk 0:01:40.2]} 24... Bb7 {[%clk 0:01:58.9]} 25. Nhxg7
{[%clk 0:01:30.4]} 25... Qd5 {[%clk 0:01:58.4]} 26. f3 {[%clk 0:01:30]} 26...
Rad8 {[%clk 0:01:19.4]} 27. Be4 {[%clk 0:01:21.6]} 27... Qd7 {[%clk 0:01:13.3]}
28. Bxb7 {[%clk 0:01:17.8]} 28... N6e7 {[%clk 0:01:13.7]} 29. Be4 {[%clk
0:01:07]} 29... Nxf5 {[%clk 0:01:10]} 30. Nxf5 {[%clk 0:00:59.8]} 30... Bb8
{[%clk 0:01:07.2]} 31. Bxh6 {[%clk 0:00:56.4]} 31... Qc7 {[%clk 0:01:06.8]} 32.
Bg7+ {[%clk 0:00:24.3]} 32... Kh7 {[%clk 0:01:06.1]} 33. Nh4+ {[%clk 0:00:20]}
33... Kxg7 {[%clk 0:01:05.6]} 34. Qg5+ {[%clk 0:00:20.4]} 34... Kh8 {[%clk
0:01:03.8]} 35. Qh5+ {[%clk 0:00:21.1]} 35... Kg7 {[%clk 0:01:03.8]} 36. Nf5+
{[%clk 0:00:20]} 36... Kf6 {[%clk 0:01:03.7]} 37. Qh4+ {[%clk 0:00:19.3]} 37...
Kg6 {[%clk 0:01:01.5]} 38. Qg4+ {[%clk 0:00:19.1]} 38... Kf6 {[%clk 0:01:01.4]}
39. Qg7+ {[%clk 0:00:19.6]} 39... Ke6 {[%clk 0:01:01.5]} 40. Bc6+ {[%clk
0:00:17.3]} 40... Kxf5 {[%clk 0:01:00.2]} 41. g4+ {[%clk 0:00:12.8]} 41... Kf4
{[%clk 0:00:59.7]} 42. Re4+ {[%clk 0:00:11.8]} 42... Kxf3 {[%clk 0:00:59.5]} 43.
Re7+ {[%clk 0:00:06.1]} 43... Qxc6 {[%clk 0:00:54.6]} 44. Rxf7+ {[%clk
0:00:05.7]} 44... Rxf7 {[%clk 0:00:52.9]} 45. Qxf7+ {[%clk 0:00:06.6]} 45... Nf6
{[%clk 0:00:52.2]} 46. Rf1+ {[%clk 0:00:05.5]} 46... Kg3 {[%clk 0:00:52.4]} 47.
Rf3+ {[%clk 0:00:01.4]} 47... Qxf3 {[%clk 0:00:51.7]} 0-1

[Event "Late-Titled-Tuesday-Blitz-September-12-2023"]
[Site "Chess.com"]
[Date "2023.09.12"]
[Round "11"]
[White "KaydenTroffChess"]
[Black "Perecke"]
[Result "1-0"]
[WhiteElo "2761"]
[BlackElo "2537"]
[TimeControl "180+1"]
[EndTime "16:00:33 PDT"]
[Termination "KaydenTroffChess won by resignation"]

1. d4 {[%clk 0:03:00.9]} 1... Nf6 {[%clk 0:03:00]} 2. Nf3 {[%clk 0:03:01.4]}
2... e6 {[%clk 0:02:59.6]} 3. Bf4 {[%clk 0:03:01.6]} 3... d5 {[%clk 0:02:59.4]}
4. e3 {[%clk 0:03:01.7]} 4... c5 {[%clk 0:02:59.7]} 5. Nc3 {[%clk 0:03:01.5]}
5... a6 {[%clk 0:02:57.5]} 6. Ne5 {[%clk 0:02:59.6]} 6... Nc6 {[%clk 0:02:55]}
7. Be2 {[%clk 0:02:46.6]} 7... Bd6 {[%clk 0:02:50.8]} 8. Nxc6 {[%clk 0:02:46.4]}
8... bxc6 {[%clk 0:02:49.9]} 9. dxc5 {[%clk 0:02:46.7]} 9... Bxc5 {[%clk
0:02:43.4]} 10. O-O {[%clk 0:02:45.2]} 10... O-O {[%clk 0:02:42]} 11. Bf3 {[%clk
0:02:43.6]} 11... Bd6 {[%clk 0:02:40]} 12. Bg5 {[%clk 0:02:41.3]} 12... h6
{[%clk 0:02:39.6]} 13. Bh4 {[%clk 0:02:40.8]} 13... g5 {[%clk 0:02:36.3]} 14.
Bg3 {[%clk 0:02:40.4]} 14... Bxg3 {[%clk 0:02:31.2]} 15. hxg3 {[%clk 0:02:39.4]}
15... e5 {[%clk 0:02:30.9]} 16. e4 {[%clk 0:02:23.9]} 16... d4 {[%clk
0:02:29.9]} 17. Na4 {[%clk 0:02:23]} 17... Qa5 {[%clk 0:02:25.9]} 18. c3 {[%clk
0:02:22.2]} 18... c5 {[%clk 0:02:16.1]} 19. cxd4 {[%clk 0:02:07.5]} 19... cxd4
{[%clk 0:02:17]} 20. b3 {[%clk 0:02:02.8]} 20... Bd7 {[%clk 0:02:05.6]} 21. Nb2
{[%clk 0:02:02.3]} 21... g4 {[%clk 0:02:06]} 22. Be2 {[%clk 0:02:00.7]} 22...
Nxe4 {[%clk 0:02:05.6]} 23. Nc4 {[%clk 0:01:25.4]} 23... Qc7 {[%clk 0:01:52.3]}
24. Rc1 {[%clk 0:01:25.4]} 24... Nc3 {[%clk 0:01:50.7]} 25. Qd2 {[%clk
0:01:25.6]} 25... Kg7 {[%clk 0:01:42.4]} 26. f4 {[%clk 0:01:21.1]} 26... Bb5
{[%clk 0:01:16.4]} 27. Bxg4 {[%clk 0:01:07.4]} 27... Bxc4 {[%clk 0:01:09]} 28.
bxc4 {[%clk 0:01:08.3]} 28... Rad8 {[%clk 0:00:48.5]} 29. fxe5 {[%clk
0:00:53.7]} 29... Qxe5 {[%clk 0:00:49.4]} 30. Rf5 {[%clk 0:00:49.2]} 30... Qe7
{[%clk 0:00:05.5]} 31. Re1 {[%clk 0:00:45.7]} 31... Qd6 {[%clk 0:00:02.7]} 32.
c5 {[%clk 0:00:45.1]} 32... Qg6 {[%clk 0:00:02.4]} 33. Ree5 {[%clk 0:00:33.5]}
33... Nb5 {[%clk 0:00:01.5]} 34. Bh5 {[%clk 0:00:27.9]} 34... Qxg3 {[%clk
0:00:01.5]} 35. Rg5+ {[%clk 0:00:25.1]} 35... hxg5 {[%clk 0:00:02.4]} 36. Rxg5+
{[%clk 0:00:25.4]} 36... Qxg5 {[%clk 0:00:03.3]} 37. Qxg5+ {[%clk 0:00:25.7]}
37... Kh7 {[%clk 0:00:04.2]} 38. Bg4 {[%clk 0:00:24.2]} 38... f6 {[%clk
0:00:02.5]} 39. Bf5+ {[%clk 0:00:24]} 39... Kh8 {[%clk 0:00:02.5]} 40. Qh6+
{[%clk 0:00:24.3]} 1-0

[Event "Late-Titled-Tuesday-Blitz-September-12-2023"]
[Site "Chess.com"]
[Date "2023.09.12"]
[Round "11"]
[White "talaicito"]
[Black "AlexNovitz"]
[Result "0-1"]
[WhiteElo "2176"]
[BlackElo "2172"]
[TimeControl "180+1"]
[EndTime "16:00:35 PDT"]
[Termination "AlexNovitz won on time"]

1. d4 {[%clk 0:02:59.2]} 1... Nf6 {[%clk 0:02:59.5]} 2. Nc3 {[%clk 0:02:59.6]}
2... d5 {[%clk 0:02:58.6]} 3. Bf4 {[%clk 0:02:59.6]} 3... a6 {[%clk 0:02:56.1]}
4. e3 {[%clk 0:02:59.7]} 4... Bf5 {[%clk 0:02:47.8]} 5. Nf3 {[%clk 0:02:59.7]}
5... h6 {[%clk 0:02:46.6]} 6. Ne5 {[%clk 0:02:58.3]} 6... e6 {[%clk 0:02:45]} 7.
g4 {[%clk 0:02:57.9]} 7... Bh7 {[%clk 0:02:43.7]} 8. h4 {[%clk 0:02:58]} 8...
Nbd7 {[%clk 0:02:42]} 9. Bd3 {[%clk 0:02:55.8]} 9... Bxd3 {[%clk 0:02:39.6]} 10.
Qxd3 {[%clk 0:02:55.3]} 10... Nxe5 {[%clk 0:02:40]} 11. Bxe5 {[%clk 0:02:47.9]}
11... Nxg4 {[%clk 0:02:40.5]} 12. Bg3 {[%clk 0:02:39.7]} 12... Bd6 {[%clk
0:02:36.5]} 13. Qe2 {[%clk 0:02:31.3]} 13... h5 {[%clk 0:02:26.9]} 14. O-O-O
{[%clk 0:02:15.5]} 14... Bxg3 {[%clk 0:02:25.8]} 15. fxg3 {[%clk 0:02:15.4]}
15... f5 {[%clk 0:02:24.4]} 16. Na4 {[%clk 0:01:41.7]} 16... Qd6 {[%clk
0:02:15.9]} 17. Nc5 {[%clk 0:01:34.8]} 17... O-O {[%clk 0:01:48.6]} 18. Nxb7
{[%clk 0:01:29.1]} 18... Qxg3 {[%clk 0:01:47.3]} 19. Rde1 {[%clk 0:01:20.1]}
19... f4 {[%clk 0:01:28.1]} 20. exf4 {[%clk 0:01:15.8]} 20... Qxf4+ {[%clk
0:01:29]} 21. Kb1 {[%clk 0:01:15]} 21... Rae8 {[%clk 0:01:22.7]} 22. c3 {[%clk
0:00:53.2]} 22... Nf2 {[%clk 0:01:08.4]} 23. Nc5 {[%clk 0:00:19.2]} 23... Nxh1
{[%clk 0:01:04.2]} 24. Rxh1 {[%clk 0:00:20.1]} 24... e5 {[%clk 0:00:52.3]} 25.
Qxh5 {[%clk 0:00:15.4]} 25... Qf5+ {[%clk 0:00:16.6]} 26. Qxf5 {[%clk
0:00:15.3]} 26... Rxf5 {[%clk 0:00:17.5]} 27. dxe5 {[%clk 0:00:10.6]} 27...
Rfxe5 {[%clk 0:00:14.2]} 28. Kc2 {[%clk 0:00:10.1]} 28... Re2+ {[%clk
0:00:13.9]} 29. Kb3 {[%clk 0:00:10.3]} 29... a5 {[%clk 0:00:13.3]} 30. Na6
{[%clk 0:00:07.6]} 30... c6 {[%clk 0:00:12.7]} 31. Rg1 {[%clk 0:00:05.7]} 31...
Rh2 {[%clk 0:00:11.9]} 32. Rg4 {[%clk 0:00:03.3]} 32... Ree2 {[%clk 0:00:11.4]}
0-1